Cogmind - Beta 11.1 @@@ ROGUE MODE // 2022.05.09 @ 02:42:22 Player: Olga Result: Destroyed by G-67 Veteran with Field Laser Performance ------------- Evolutions (6) 3000 Regions Visited (23) 4600 Robots Destroyed (258) 1290 Value Destroyed (12362) 12362 Prototype IDs (34) 680 Alien Tech Used (2) 400 Bonus (3843) 3843 TOTAL SCORE: 26175 Bonus ------- High Alert Combat Kills 1692 Follower Combat Kills 1363 Met Data Miner 300 Met Imprinter 300 Met Zhirov 300 Friendly Fire -112 Cogmind --------- Core Integrity 0/1150 Matter 290/300 Energy 98/100 System Corruption 26% Temperature Cool (9) Movement Core (50) Location -4/Factory Parts ------- > --- POWER (2) -------- (None) > --- PROPULSION (5) --- (None) > --- UTILITY (10) ----- (None) > --- WEAPON (2) ------- (None) > --- INVENTORY (5) ---- Biometal Leg Wheel Wheel Improved Remote Shield Cooled Plasma Cannon Peak State ------------ > --- POWER ------------ Antimatter Reactor Antimatter Reactor > --- PROPULSION ------- Armored Heavy Treads Advanced Heavy Siege Treads Biometal Leg > --- UTILITY ---------- Advanced Visual Processing Unit Active Sensor Suite Improved Targeting Computer Improved Reaction Control System Improved Medium Armor Plating Improved Remote Shield Advanced Hacking Suite Improved System Guard > --- WEAPON ----------- Heavy Beamcaster Heavy Beamcaster > --- INVENTORY -------- Reinforced Quantum Reactor Advanced Thermal Shield Beamcaster Cooled Plasma Cannon Missile Launcher [Rating: 132] Favorites ----------- Power Fission Core Engine Light Angular Momentum Engine Power Core Fission Core Reactor Antimatter Reactor Propulsion Light Treads Treads Light Treads Leg Flexi-carbon Leg Wheel Armored Huge Wheel Utility Large Storage Unit Device Improved Cooling System Storage Large Storage Unit Processor Advanced Targeting Computer Hackware Advanced Hacking Suite Protection Hardened Light Armor Plating Weapon Improved Spread Laser Energy Gun Improved Spread Laser Energy Cannon Heavy Ion Cannon Ballistic Gun Heavy Assault Rifle Ballistic Cannon Light Cannon Launcher Long-range Missile Launcher Special Weapon RU-N14's Throwing Claymores Build | -11 -10 -10 -10 -9 -8 -7 -7 -7 -7 -6 -6 -6 -6 -6 -5 -5 -5 -5 -5 -4 -4 -4 -4 ------- Run | Scr Mat Min Exi Min Mat Fac Low Low Zio Pro Fac Low Low Dat Pro Fac Upp Upp Zhi Pro Fac Was Fac Slots Evolved 12 | . . . . . 4 2 . . . . 2 . . . . 2 . . . . 2 . . Power 1 | . . . . . . . . . . . 1 . . . . . . . . . . . . Propulsion 3 | . . . . . 1 1 . . . . . . . . . 1 . . . . . . . Utility 8 | . . . . . 3 1 . . . . 1 . . . . 1 . . . . 2 . . Weapon . | . . . . . . . . . . . . . . . . . . . . . . . . Parts Attached 352 | . 16 3 . 2 19 27 6 2 5 5 44 7 3 2 10 45 20 8 8 28 32 14 46 Power 44 | . 2 . . 1 2 3 2 . 1 . 8 1 . . 1 2 3 1 1 2 7 2 5 Engine 20 | . 2 . . . 1 2 2 . 1 . 6 . . . . 1 1 . . 1 2 . 1 Core 13 | . . . . 1 1 1 . . . . 2 1 . . 1 1 1 1 . 1 1 . 1 Reactor 11 | . . . . . . . . . . . . . . . . . 1 . 1 . 4 2 3 Propulsion 80 | . 6 . . 1 5 7 1 . 1 3 8 1 1 . 7 10 2 1 . 9 4 2 11 Treads 62 | . 6 . . 1 5 5 1 . 1 3 8 1 1 . 7 8 2 1 . 1 2 . 9 Leg 15 | . . . . . . 2 . . . . . . . . . . . . . 8 1 2 2 Wheel 3 | . . . . . . . . . . . . . . . . 2 . . . . 1 . . Hover . | . . . . . . . . . . . . . . . . . . . . . . . . Flight . | . . . . . . . . . . . . . . . . . . . . . . . . Utility 153 | . 5 2 . . 7 10 3 2 3 2 24 3 2 . . 24 11 5 4 7 17 2 20 Device 94 | . . 1 . . . 6 2 1 2 2 14 3 2 . . 17 9 4 2 7 11 2 9 Storage 10 | . 3 . . . 1 . . . . . 2 . . . . . 1 . . . 1 . 2 Processor 13 | . . . . . 3 1 . 1 . . 1 . . . . 1 1 . . . . . 5 Hackware 7 | . . . . . . . . . . . 4 . . . . 1 . . . . 2 . . Protection 29 | . 2 1 . . 3 3 1 . 1 . 3 . . . . 5 . 1 2 . 3 . 4 Artifact . | . . . . . . . . . . . . . . . . . . . . . . . . Weapon 75 | . 3 1 . . 5 7 . . . . 4 2 . 2 2 9 4 1 3 10 4 8 10 Energy Gun 37 | . . . . . 2 2 . . . . 2 1 . 1 . 6 4 . 2 3 3 5 6 Energy Cannon 16 | . . . . . . 1 . . . . 1 1 . 1 1 1 . 1 1 3 1 . 4 Ballistic Gun 7 | . 2 1 . . . 3 . . . . . . . . . . . . . 1 . . . Ballistic Cannon 5 | . 1 . . . 3 . . . . . . . . . . . . . . 1 . . . Launcher 7 | . . . . . . 1 . . . . 1 . . . 1 . . . . 1 . 3 . Special Weapon 3 | . . . . . . . . . . . . . . . . 2 . . . 1 . . . Impact Weapon . | . . . . . . . . . . . . . . . . . . . . . . . . Slashing Weapon . | . . . . . . . . . . . . . . . . . . . . . . . . Piercing Weapon . | . . . . . . . . . . . . . . . . . . . . . . . . Special Melee Weapon . | . . . . . . . . . . . . . . . . . . . . . . . . Unidentified Prototypes 14 | . . 1 . . . 1 . . . . 1 . . . . 3 . . 3 . . 2 3 Corrupted Parts 5 | . . . . . . . . . . . . . . . . 1 1 . . . . . 3 System Corruption 20 | . . . . . . . . . . . . . . . . 3 8 . . . . . 9 Parts Lost 68 | . 1 . . . 6 1 1 1 . . 6 . 2 . . 7 1 . . 9 2 15 16 Power 10 | . . . . . 1 . . . . . . . . . . 1 . . . 2 1 1 4 Propulsion 17 | . . . . . 3 1 . . . . 1 . . . . 2 1 . . 4 . 3 2 Utility 29 | . . . . . 1 . 1 1 . . 3 . 2 . . 4 . . . 1 1 8 7 Weapon 12 | . 1 . . . 1 . . . . . 2 . . . . . . . . 2 . 3 3 Highest Loss Streak 15 | . 1 . . . 4 1 1 1 . . 4 . 2 . . 3 1 . . 5 1 15 5 To Critical Strikes 4 | . . . . . . 1 . . . . 1 . . . . . . . . 1 . 1 . Average Slot Usage (%) 90 | . 98 100 100 100 96 89 92 95 100 100 98 93 93 80 90 88 92 94 82 84 90 38 72 Engine 4 | . 14 14 14 8 2 5 7 7 7 7 6 2 . . . . 4 . . . 1 . . Core 3 | . . . . 5 6 1 . . . . 5 9 13 13 13 10 5 5 2 1 3 . 1 Reactor 1 | . . . . . . . . . . . . . . . . . . 5 7 8 5 6 7 Treads 21 | . 25 28 28 28 25 21 30 30 30 30 25 26 26 26 23 17 21 23 23 7 7 1 9 Leg 2 | . 2 . . . . 6 . . . . . . . . . . . . . 7 9 4 5 Device 13 | . . . . . . 6 7 10 12 7 13 19 20 20 20 25 25 19 16 22 26 7 14 Storage 6 | . 14 14 14 14 11 7 7 7 7 7 6 6 6 6 6 5 5 5 5 5 5 . 2 Processor 11 | . . . . . 16 14 15 18 23 23 14 6 6 6 6 5 14 17 14 11 5 . 10 Hackware 2 | . . . . . . . . . . . 7 . . . . 2 . . . . 5 5 4 Protection 5 | . 12 14 14 14 15 7 7 3 2 7 2 6 6 6 6 3 . 2 7 5 7 . 4 Energy Gun 5 | . . . . . 1 2 7 7 7 7 8 5 6 . 6 6 10 5 . 3 6 8 6 Energy Cannon 3 | . . . . . . 2 7 7 7 7 3 6 6 . 5 2 . 4 . 3 2 . 2 Ballistic Gun 2 | . 21 14 14 14 9 7 . . . . . . . . . . . . . . . . . Ballistic Cannon 1 | . 6 14 14 14 7 1 . . . . . . . . . . . . . . 1 . . Naked Turns 60 | . . . . . . . . . . . . . . . . . . . . . . . 60 Heaviest Build 108 | 14 33 34 34 34 42 59 64 64 53 50 73 81 81 74 74 81 83 89 90 99 108 104 107 Greatest Support 170 | 20 40 40 40 40 60 80 80 80 80 93 93 90 98 98 128 170 170 163 163 110 150 150 168 Greatest Overweight (x) 9 | . 1 . . . 1 1 . . . . . . . . . 2 . . . 3 6 9 1 Average Overweight (x) . | . . . . . . . . . . . . . . . . . . . . . . . . Largest Inventory Capacity 25 | 8 25 15 15 15 15 15 15 15 15 15 25 15 15 15 15 15 20 20 20 20 20 20 20 Average Capacity 15 | 8 14 15 15 15 15 15 15 15 15 15 15 15 15 15 15 15 18 20 20 20 20 6 8 Most Carried 20 | 6 15 15 15 15 15 15 15 15 15 15 15 15 15 15 15 15 20 20 20 20 20 20 19 Average Carried 14 | 6 13 14 15 15 14 14 14 14 14 14 14 14 14 15 14 14 17 19 19 18 19 6 6 Final Capacity 20 | 8 15 15 15 15 15 15 15 15 15 15 15 15 15 15 15 15 20 20 20 20 20 5 5 Final Carried 20 | 6 15 15 15 15 15 15 15 15 15 15 15 15 15 15 15 13 20 20 20 20 20 5 5 Class Distribution -------------------- 55% | Mutant 30% | Scavenger-Mutant 7% | Hacker-Mutant 4% | Derelict-Mutant Dominant Class ---------------- Mutant | -10/Materials Mutant | -10/Mines Mutant | -10/Exiles Mutant | -9/Mines Scavenger-Mutant | -8/Materials Scavenger-Mutant | -7/Factory Scavenger-Mutant | -7/Lower Caves Scavenger-Mutant | -7/Lower Caves Mutant | -7/Zion Mutant | -6/Proximity Caves Hacker-Mutant | -6/Factory Mutant | -6/Lower Caves Mutant | -6/Lower Caves Mutant | -6/Data Miner Mutant | -5/Proximity Caves Mutant | -5/Factory Derelict-Mutant | -5/Upper Caves Derelict-Mutant | -5/Upper Caves Derelict-Mutant | -5/Zhirov Mutant | -4/Proximity Caves Mutant | -4/Factory Scavenger-Mutant | -4/Waste Scavenger-Mutant | -4/Factory Resources | -11 -10 -10 -10 -9 -8 -7 -7 -7 -7 -6 -6 -6 -6 -6 -5 -5 -5 -5 -5 -4 -4 -4 -4 ----------- Run | Scr Mat Min Exi Min Mat Fac Low Low Zio Pro Fac Low Low Dat Pro Fac Upp Upp Zhi Pro Fac Was Fac Matter Collected 5615 | 200 330 195 . 76 380 495 80 20 50 50 473 166 58 . 236 473 259 93 . 581 512 353 535 Remotely 147 | . . . . . . 137 . . 10 . . . . . . . . . . . . . . Salvage Created 11913 | . 357 137 . 249 411 586 495 256 . 242 1198 441 288 . 467 1538 558 52 . 887 1596 393 1762 Parts 464 | . 24 14 . 10 22 34 18 5 . 8 59 16 9 . 14 81 10 . . 26 54 . 60 Haulers Intercepted 4 | . 2 . . . 1 . . . . . . . . . . . . . . . . . 1 Recyclers Shooed 9 | . . . . 1 . . . . . . 2 . . . . 1 . . . . 2 . 3 Parts Field Recycled . | . . . . . . . . . . . . . . . . . . . . . . . . Retrieved Matter . | . . . . . . . . . . . . . . . . . . . . . . . . Parts Self-Destructed 114 | . . . . . . . 18 4 . 12 . 13 7 . 18 . 12 . . 30 . . . Prevented 10 | . . . . . . . 2 . . . . . . . . . 8 . . . . . . Kills | -11 -10 -10 -10 -9 -8 -7 -7 -7 -7 -6 -6 -6 -6 -6 -5 -5 -5 -5 -5 -4 -4 -4 -4 ------- Run | Scr Mat Min Exi Min Mat Fac Low Low Zio Pro Fac Low Low Dat Pro Fac Upp Upp Zhi Pro Fac Was Fac Combat Hostiles Destroyed 234 | . 9 5 . 4 13 10 12 3 . 7 31 7 5 . 11 36 10 1 . 19 26 2 23 Guns 112 | . 9 2 . 2 8 6 6 2 . 2 15 2 2 . 1 18 10 1 . 2 15 . 9 Cannons 71 | . . 3 . 2 5 3 6 1 . 4 8 4 3 . 4 10 . . . 8 6 . 4 AOE 31 | . . . . . . . . . . . 7 . . . 5 6 . . . 8 2 2 1 Classes Destroyed 20 | . 5 2 . 1 2 4 . . . . 2 . . . 1 . . . . 2 . 1 . Worker 4 | . 1 . . . . . . . . . . . . . . 1 . . . . 1 . 1 Builder 5 | . . . . . . 1 . . . . 1 . . . . 3 . . . . . . . Tunneler 2 | . . 1 . . . . . . . . 1 . . . . . . . . . . . . Hauler 4 | . 2 . . . 1 . . . . . . . . . . . . . . . . . 1 Recycler 4 | . . 1 . 1 . . . . . . . . . . . 1 . . . . 1 . . Minesweeper 1 | . . . . . . . . . . . . . . . . . . . . 1 . . . Mechanic 1 | . . . . . . . . . . . 1 . . . . . . . . . . . . Operator 1 | . . . . . . . . . . . 1 . . . . . . . . . . . . Watcher 2 | . 1 . . . . . . . . . . . . . . . . . . . 1 . . Swarmer 55 | . 6 5 . . 5 . 1 . . 4 12 . . . 1 15 1 . . 5 . . . Saboteur 1 | . . . . . . . . . . . . . . . 1 . . . . . . . . Grunt 80 | . 3 . . 3 5 1 5 2 . 3 5 5 3 . 3 7 4 1 . 9 12 . 9 Brawler 9 | . . . . 1 . . 1 . . . 2 . . . 2 . 1 . . . . . 2 Duelist 10 | . . . . . 1 . 1 1 . . 1 . . . 2 1 1 . . . . . 2 Sentry 26 | . . . . . 2 4 1 . . . 6 1 . . 1 5 2 . . 1 2 . 1 Specialist 2 | . . . . . . 2 . . . . . . . . . . . . . . . . . Hunter 16 | . . . . . . 1 2 . . . . 1 1 . . 3 1 . . . 4 . 3 Programmer 29 | . . . . . . 2 1 . . . 5 . 1 . 1 5 . . . . 8 . 6 Compactor 2 | . . . . . . . . . . . . . . . . . . . . . . 2 . Thug 1 | . . . . . . . . . . . . . . . . . . . . 1 . . . Butcher 2 | . . . . . . . . . . . . . . . . . . . . 2 . . . Mutant 1 | . . . . . . . . . . . . . . . . . . . . 1 . . . Best Kill Streak 8 | . 4 4 . 4 3 2 7 3 . 4 6 3 3 . 5 8 4 1 . 5 5 2 6 Combat Bots Only 7 | . 3 3 . 3 3 1 7 3 . 4 4 3 3 . 5 7 4 1 . 5 4 2 6 Max Kills in Single Turn 5 | . 2 1 . 1 1 1 1 1 . 2 3 1 1 . 2 5 1 1 . 4 4 1 1 Gunslinging 1 | . 1 . . . . . . . . . . . . . . . . . . . . . . Exploded 3 | . . . . . . . . . . . 3 . . . 2 3 . . . 3 2 1 1 Melee . | . . . . . . . . . . . . . . . . . . . . . . . . Uniques/NPCs Destroyed . | . . . . . . . . . . . . . . . . . . . . . . . . Combat | -11 -10 -10 -10 -9 -8 -7 -7 -7 -7 -6 -6 -6 -6 -6 -5 -5 -5 -5 -5 -4 -4 -4 -4 -------- Run | Scr Mat Min Exi Min Mat Fac Low Low Zio Pro Fac Low Low Dat Pro Fac Upp Upp Zhi Pro Fac Was Fac Damage Taken 19471 | . 530 97 . 128 1216 1102 1045 96 . 275 2144 213 474 . 492 3207 364 234 . 546 1807 1371 4130 Core 2104 | . 51 34 . . 74 102 87 . . 20 214 . 14 . 28 313 29 32 . . 132 378 596 Absorbed by Shields 2217 | . . . . . . . . 28 . . 777 81 118 . . 484 . . . . 657 29 43 Reduced by Siege Mode 158 | . . . . . . . . . . . . . . . . 12 . . . . . . 146 Redirected to Shielding 238 | . 6 10 . 15 24 . . . . . . . . . . . . 41 . 72 70 . . Regen/Repaired (Parts) 1675 | . . . . . . . . . 707 . 434 . . . . . . . . . . . 534 Core Remaining (%) 75 | 100 . . . 66 86 . . . . 70 . . . . 69 . . . . 62 . . . Volleys Fired 737 | . 51 9 . 8 65 45 28 8 . 15 80 12 17 . 23 74 18 5 . 27 106 19 127 Largest 2 | . 2 2 . 2 2 2 2 2 . 2 2 2 2 . 2 2 2 2 . 2 2 2 2 Hottest 200 | . 55 58 . 58 84 140 140 140 . 140 170 170 154 . 154 200 200 178 . 173 178 176 162 Shots Fired 1376 | . 102 18 . 16 124 88 56 16 . 25 160 24 34 . 39 133 38 10 . 52 213 33 195 Gun 915 | . 101 9 . 8 74 74 28 8 . 10 112 7 17 . 17 91 38 5 . 16 156 20 124 Cannon 423 | . 1 9 . 8 50 12 28 8 . 15 44 17 17 . 16 39 . 5 . 26 57 . 71 Launcher 28 | . . . . . . 2 . . . . 4 . . . 6 . . . . 3 . 13 . Special 10 | . . . . . . . . . . . . . . . . 3 . . . 7 . . . Kinetic 348 | . 102 18 . 16 115 66 . . . . . . . . . . . . . 7 24 . . Thermal 959 | . . . . . 9 20 56 16 . 25 156 24 34 . 33 130 38 10 . 35 189 20 164 Explosive 38 | . . . . . . 2 . . . . 4 . . . 6 3 . . . 10 . 13 . Electromagnetic 31 | . . . . . . . . . . . . . . . . . . . . . . . 31 Robot Hit Streak 30 | . 10 5 . 11 10 11 17 11 . 8 24 21 17 . 14 30 16 10 . 20 19 14 11 Robot Miss Streak 6 | . 4 2 . 1 3 6 5 3 . 4 5 1 1 . 3 4 2 . . 2 3 3 3 Penetration Max . | . . . . . . . . . . . . . . . . . . . . . . . . Secondary Targets 9 | . 3 . . . . 1 . . . . . . . . . . 1 . . . 3 . 1 Max Gunslinging Chain 1 | . 1 . . . . 1 . . . . . . . . . . 1 . . . 1 . 1 Shots Hit Robots 991 | . 55 12 . 11 86 56 46 13 . 22 114 19 27 . 29 109 35 9 . 41 149 25 133 Core Hits 573 | . 19 7 . 7 26 30 38 18 . 20 99 12 9 . 19 97 25 3 . 36 58 3 47 Critical Kills 13 | . . . . . . 1 . . . 1 . 1 . . . . . . . 2 7 . 1 Critical Parts Destroyed 10 | . 1 . . . . . . . . . . . . . . . . . . . 9 . . Critical Strikes 51 | . 1 . . 1 3 1 . . . 1 9 1 . . 1 1 . . . 4 16 1 11 Burn 20 | . . . . . 2 . . . . . 9 . . . 1 1 . . . . . . 7 Meltdown 7 | . . . . . . 1 . . . 1 . 1 . . . . . . . 1 2 . 1 Destroy 17 | . 1 . . . . . . . . . . . . . . . . . . 1 14 1 . Blast 2 | . . . . 1 1 . . . . . . . . . . . . . . . . . . Corrupt 3 | . . . . . . . . . . . . . . . . . . . . . . . 3 Sever 2 | . . . . . . . . . . . . . . . . . . . . 2 . . . Melee Attacks . | . . . . . . . . . . . . . . . . . . . . . . . . Impact . | . . . . . . . . . . . . . . . . . . . . . . . . Slashing . | . . . . . . . . . . . . . . . . . . . . . . . . Piercing . | . . . . . . . . . . . . . . . . . . . . . . . . Sneak Attacks . | . . . . . . . . . . . . . . . . . . . . . . . . Combat Hostiles . | . . . . . . . . . . . . . . . . . . . . . . . . Follow-up Attacks . | . . . . . . . . . . . . . . . . . . . . . . . . Damage Inflicted 33711 | . 654 200 . 197 1393 1270 1205 386 . 567 4022 543 831 . 1383 4576 1047 257 . 2742 5389 2926 4123 Guns 16334 | . 654 100 . 87 787 1015 688 225 . 245 2063 130 373 . 256 2345 1047 130 . 317 3084 399 2389 Cannons 8867 | . . 95 . 110 606 238 517 161 . 322 750 413 458 . 470 956 . 127 . 650 1504 . 1490 Explosions 8055 | . . . . . . . . . . . 1195 . . . 657 1182 . . . 1511 801 2527 182 Melee . | . . . . . . . . . . . . . . . . . . . . . . . . Ramming 117 | . . 5 . . . 17 . . . . 14 . . . . 19 . . . . . . 62 Kinetic 3843 | . 654 195 . 197 1273 756 . . . . . . . . . . . . . 161 607 . . Thermal 22056 | . . . . . 120 497 1205 386 . 567 3214 543 831 . 726 3394 1047 257 . 806 4782 422 3259 Explosive 6456 | . . . . . . . . . . . 794 . . . 657 990 . . . 1511 . 2504 . Electromagnetic 901 | . . . . . . . . . . . . . . . . 99 . . . . . . 802 Impact . | . . . . . . . . . . . . . . . . . . . . . . . . Slashing 338 | . . . . . . . . . . . . . . . . 74 . . . 264 . . . Piercing . | . . . . . . . . . . . . . . . . . . . . . . . . Highest Corruption 26 | . . . . . . 3 . . . . 4 4 5 5 5 7 15 15 15 15 7 7 26 Average Corruption 6 | . . . . . . 1 . . . . 3 4 4 5 5 4 7 15 15 15 3 7 7 Corruption Purged 11 | . . . . . . 7 . . . . 4 . . . . . . . . . . . . Corruption Blocked . | . . . . . . . . . . . . . . . . . . . . . . . . Effects 310 | . . . . . . 12 . . . . 43 11 5 2 21 39 28 17 13 46 20 18 35 Message Errors 76 | . . . . . . 5 . . . . 14 1 . 1 5 9 5 4 6 10 4 4 8 Matter Fused 80 | . . . . . . 1 . . . . 12 2 4 . 4 10 6 2 4 17 7 3 8 Heat Flow Errors 26 | . . . . . . 1 . . . . 2 . 1 . 2 3 3 2 . 1 2 4 5 Energy Discharges 31 | . . . . . . 1 . . . . 2 3 . . 2 4 2 6 . 3 1 2 5 Parts Rejected 6 | . . . . . . . . . . . 1 . . . 2 1 . . . . 1 . 1 Data Loss (minor) 41 | . . . . . . 3 . . . . 6 3 . 1 3 5 7 2 1 7 1 2 . Data Loss (major) 18 | . . . . . . 1 . . . . 1 1 . . . 2 2 1 1 7 1 . 1 Misfires 14 | . . . . . . . . . . . 2 . . . 1 2 2 . . 1 2 3 1 Alerts 9 | . . . . . . . . . . . 2 1 . . . 1 1 . 1 . 1 . 2 Misdirections 2 | . . . . . . . . . . . . . . . . . . . . . . . 2 Weapon Failures 7 | . . . . . . . . . . . 1 . . . 2 2 . . . . . . 2 Overload Shots . | . . . . . . . . . . . . . . . . . . . . . . . . Overflow Damage 666 | . . . . . . . . 15 . . 26 . 58 . 26 112 . . . 57 146 169 57 Projectiles 246 | . . . . . . . . 15 . . 7 . 58 . 18 20 . . . 6 79 . 43 Explosions 420 | . . . . . . . . . . . 19 . . . 8 92 . . . 51 67 169 14 Melee . | . . . . . . . . . . . . . . . . . . . . . . . . Knockbacks 17 | . . 1 . . 9 . . . . . . . . . . . . . . . 7 . . Impact . | . . . . . . . . . . . . . . . . . . . . . . . . Kinetic 17 | . . 1 . . 9 . . . . . . . . . . . . . . . 7 . . Secondary . | . . . . . . . . . . . . . . . . . . . . . . . . Self-Inflicted Damage 1446 | . . . . . . . . . . . 247 . . . 79 49 . . . . 43 966 62 Shots 24 | . . . . . . . . . . . 6 . . . 2 1 . . . . 2 12 1 Rammed 14 | . . 1 . . . 2 . . . . 1 . . . . 2 . . . . . . 8 Targets Rammed 15 | . . 2 . . . 2 . . . . 1 . . . . 2 . . . . . . 8 Kicked . | . . . . . . . . . . . . . . . . . . . . . . . . Crushed 1 | . . 1 . . . . . . . . . . . . . . . . . . . . . Highest Temperature 488 | . 16 . . 18 324 163 232 2 . 37 488 289 318 . 216 189 231 180 . 195 196 194 301 Average Temperature 86 | . 7 . . 8 160 53 117 1 . 23 64 102 127 . 84 57 32 63 . 62 46 92 107 Received Heat Transfer 3604 | . 180 . . 69 477 60 261 60 . 99 266 63 126 . 36 429 153 99 . 208 381 . 637 Effects 10 | . . . . . 1 . . . . . 3 2 . . . . . . . . . . 4 Shutdowns 2 | . . . . . . . . . . . 2 . . . . . . . . . . . . Energy Bleed 2 | . . . . . 1 . . . . . . . . . . . . . . . . . 1 Interference 5 | . . . . . . . . . . . . 2 . . . . . . . . . . 3 Short Circuit 1 | . . . . . . . . . . . 1 . . . . . . . . . . . . Siege Activations 2 | . . . . . . . . . . . . . . . . 1 . . . . . . 1 Total Turns 72 | . . . . . . . . . . . . . . . . 13 . . . . . . 59 Longest Duration 59 | . . . . . . . . . . . . . . . . 13 . . . . . . 59 Robots Corrupted 5 | . . . . . . . . . . . . . . . . . . . . . . . 5 Combat Hostiles 5 | . . . . . . . . . . . . . . . . . . . . . . . 5 Parts Fried 5 | . . . . . . . . . . . . . . . . . . . . . . . 5 Impact Corruptions . | . . . . . . . . . . . . . . . . . . . . . . . . Robots Melted 15 | . . . . . . 1 . . . 1 1 1 . . 1 2 . . . 1 3 . 4 Combat Hostiles 15 | . . . . . . 1 . . . 1 1 1 . . 1 2 . . . 1 3 . 4 Parts Melted 89 | . . . . . 1 1 . . . 2 15 4 2 . 5 21 1 . . 2 14 . 21 Heat Transferred 31081 | . . . . . 370 553 1268 407 . 649 5297 703 1036 . 962 4834 1695 385 . 1101 5996 605 5220 Parts Sabotaged . | . . . . . . . . . . . . . . . . . . . . . . . . Parts Stolen . | . . . . . . . . . . . . . . . . . . . . . . . . Parts Stripped . | . . . . . . . . . . . . . . . . . . . . . . . . Power Chain Reactions 3 | . . . . . . . . . . . . . . . . 1 . . . . . 1 1 Missiles Intercepted . | . . . . . . . . . . . . . . . . . . . . . . . . Alert | -11 -10 -10 -10 -9 -8 -7 -7 -7 -7 -6 -6 -6 -6 -6 -5 -5 -5 -5 -5 -4 -4 -4 -4 ------- Run | Scr Mat Min Exi Min Mat Fac Low Low Zio Pro Fac Low Low Dat Pro Fac Upp Upp Zhi Pro Fac Was Fac Peak Influence 1468 | . 233 165 . 121 216 218 . . . . 719 . . . . 889 . . . . 711 348 1468 Initial 248 | . . 5 . . 46 65 . . . . 56 . . . . 107 . . . . 68 248 35 Average 308 | . 74 29 . 69 111 76 . . . . 241 . . . . 414 . . . . 303 181 959 Maximum Alert Level 4 | . 1 . . . 1 1 . . . . 3 . . . . 3 . . . . 3 1 4 Low Security (%) 54 | 100 99 100 . 100 88 88 . . . . 53 . . . . 23 . . . . 40 36 1 Level 1 14 | . . . . . 11 11 . . . . 12 . . . . 26 . . . . 34 63 . Level 2 16 | . . . . . . . . . . . 32 . . . . 39 . . . . 15 . 15 Level 3 10 | . . . . . . . . . . . 1 . . . . 10 . . . . 9 . 52 Level 4 4 | . . . . . . . . . . . . . . . . . . . . . . . 31 Level 5 . | . . . . . . . . . . . . . . . . . . . . . . . . High Security . | . . . . . . . . . . . . . . . . . . . . . . . . Max Security . | . . . . . . . . . . . . . . . . . . . . . . . . Squads Dispatched 60 | . 1 . . . 2 6 . . . . 12 . . . 1 10 . . . . 12 . 16 Investigation 8 | . 1 . . . 1 . . . . . 1 . . . . . . . . . 2 . 3 Extermination 17 | . . . . . . 2 . . . . 4 . . . . 3 . . . . 4 . 4 Reinforcement 17 | . . . . . 1 1 . . . . 3 . . . . 2 . . . . 5 . 5 Assault 8 | . . . . . . . . . . . 1 . . . 1 2 . . . . 1 . 3 Garrison 10 | . . . . . . 3 . . . . 3 . . . . 3 . . . . . . 1 Intercept . | . . . . . . . . . . . . . . . . . . . . . . . . Searches Triggered . | . . . . . . . . . . . . . . . . . . . . . . . . Data Miner Redirects 4 | . . . . . . . . . . . . . . . . . . . . . 1 . 3 Construction Impeded 4 | . . . . . . . . . . . 1 . . . . . . . . . 1 . 2 Haulers Reinforced 1 | . . . . . . . . . . . . . . . . . . . . . 1 . . Active Scanning Responses 3 | . . . . . . . . . . . . . . . . . . . . . . . 3 Cargo Convoy Interrupts . | . . . . . . . . . . . . . . . . . . . . . . . . Stealth | -11 -10 -10 -10 -9 -8 -7 -7 -7 -7 -6 -6 -6 -6 -6 -5 -5 -5 -5 -5 -4 -4 -4 -4 --------- Run | Scr Mat Min Exi Min Mat Fac Low Low Zio Pro Fac Low Low Dat Pro Fac Upp Upp Zhi Pro Fac Was Fac Distress Signals 10 | . . . . . 3 . . . . . 1 . . . . . . . . . 2 . 4 Communications Jammed . | . . . . . . . . . . . . . . . . . . . . . . . . Distress Signals . | . . . . . . . . . . . . . . . . . . . . . . . . Times Spotted 363 | . 18 6 . 5 29 14 14 3 . 10 44 7 5 . 18 56 11 5 . 20 33 7 58 Peak Tracking Total 10 | . 4 3 . 3 8 2 7 3 . 4 4 3 3 . 7 10 6 3 . 5 4 3 10 Tactical Retreats 29 | . . 1 . . 2 . 2 . . . 2 . . . . 7 3 3 . . 4 1 4 Traps | -11 -10 -10 -10 -9 -8 -7 -7 -7 -7 -6 -6 -6 -6 -6 -5 -5 -5 -5 -5 -4 -4 -4 -4 ------- Run | Scr Mat Min Exi Min Mat Fac Low Low Zio Pro Fac Low Low Dat Pro Fac Upp Upp Zhi Pro Fac Was Fac Traps Triggered 10 | . 3 . . . . 3 . . . . 2 . . . . . . . . . 2 . . Indirectly . | . . . . . . . . . . . . . . . . . . . . . . . . Trap Hack Attempts . | . . . . . . . . . . . . . . . . . . . . . . . . Triggered . | . . . . . . . . . . . . . . . . . . . . . . . . Disarmed . | . . . . . . . . . . . . . . . . . . . . . . . . Reprogrammed . | . . . . . . . . . . . . . . . . . . . . . . . . Reused . | . . . . . . . . . . . . . . . . . . . . . . . . Traps Extracted . | . . . . . . . . . . . . . . . . . . . . . . . . Installed . | . . . . . . . . . . . . . . . . . . . . . . . . Triggered 6 | . . . . . . . 2 1 . . . . . . . . . 3 . . . . . Machines | -11 -10 -10 -10 -9 -8 -7 -7 -7 -7 -6 -6 -6 -6 -6 -5 -5 -5 -5 -5 -4 -4 -4 -4 ---------- Run | Scr Mat Min Exi Min Mat Fac Low Low Zio Pro Fac Low Low Dat Pro Fac Upp Upp Zhi Pro Fac Was Fac Machines Disabled 25 | . . 1 . . . . . . . . 3 . . . . 2 1 . . . 9 . 9 Max in Single Turn 5 | . . 1 . . . . . . . . 2 . . . . 1 1 . . . 5 . 1 Garrison Access 4 | . . . . . . 1 . . . . 1 . . . . 1 . . . . . . 1 Machines Sabotaged . | . . . . . . . . . . . . . . . . . . . . . . . . Garrisons Compromised . | . . . . . . . . . . . . . . . . . . . . . . . . Overloaded Fab Kills . | . . . . . . . . . . . . . . . . . . . . . . . . Hacking | -11 -10 -10 -10 -9 -8 -7 -7 -7 -7 -6 -6 -6 -6 -6 -5 -5 -5 -5 -5 -4 -4 -4 -4 --------- Run | Scr Mat Min Exi Min Mat Fac Low Low Zio Pro Fac Low Low Dat Pro Fac Upp Upp Zhi Pro Fac Was Fac Machines Accessed 54 | . 4 1 . . 2 7 . 3 . . 9 . . 4 . 6 3 . 4 . 3 . 8 Terminals 22 | . 4 . . . . 4 . 1 . . 5 . . . . 2 . . . . 1 . 5 Fabricators 4 | . . . . . . 1 . . . . 1 . . . . 1 . . . . 1 . . Repair Stations 3 | . . . . . . . . . . . 1 . . . . . . . . . . . 2 Recycling Units 2 | . . . . . . . . . . . . . . . . . . . . . 1 . 1 Scanalyzers 3 | . . . . . 1 1 . . . . . . . . . 1 . . . . . . . Garrison Access 6 | . . . . . 1 1 . . . . 2 . . . . 2 . . . . . . . Total Hacks 156 | . 12 1 . . 5 22 . 4 . . 24 . . 31 . 10 5 . 17 . 9 . 16 Successful 97 | . 5 1 . . 1 11 . 4 . . 11 . . 31 . 4 5 . 17 . 2 . 5 Failed 59 | . 7 . . . 4 11 . . . . 13 . . . . 6 . . . . 7 . 11 Catastrophic 10 | . 2 . . . . 2 . . . . 1 . . . . 1 . . . . 1 . 3 Database Lockouts . | . . . . . . . . . . . . . . . . . . . . . . . . Manual 45 | . 12 . . . 1 11 . . . . 13 . . . . 4 . . . . . . 4 Terminals 54 | . 12 . . . . 16 . 2 . . 10 . . . . 3 . . . . 2 . 9 Fabricators 10 | . . . . . . 2 . . . . 2 . . . . 2 . . . . 4 . . Repair Stations 11 | . . . . . . . . . . . 7 . . . . . . . . . . . 4 Recycling Units 6 | . . . . . . . . . . . . . . . . . . . . . 3 . 3 Scanalyzers 5 | . . . . . 1 2 . . . . . . . . . 2 . . . . . . . Garrison Access 14 | . . . . . 4 2 . . . . 5 . . . . 3 . . . . . . . Terminal Hacks 66 | . 1 1 . . . 5 . 4 . . . . . 31 . 1 5 . 17 . . . 1 Record 21 | . . . . . . . . 2 . . . . . 11 . . 3 . 5 . . . . Part Schematic 16 | . . . . . . . . . . . . . . 12 . . . . 4 . . . . Robot Schematic 5 | . . . . . . . . . . . . . . 5 . . . . . . . . . Robot Analysis 4 | . . . . . . . . . . . . . . . . . . . 4 . . . . Prototype ID Bank 7 | . . . . . . . . . . . . . . 3 . . . . 4 . . . . Open Door 5 | . . 1 . . . . . 2 . . . . . . . . 2 . . . . . . Branch Access Points 1 | . . . . . . 1 . . . . . . . . . . . . . . . . . Machine Index 1 | . . . . . . 1 . . . . . . . . . . . . . . . . . Terminal Index 1 | . 1 . . . . . . . . . . . . . . . . . . . . . . Alert Level 2 | . . . . . . 1 . . . . . . . . . . . . . . . . 1 Unreport Threat 1 | . . . . . . 1 . . . . . . . . . . . . . . . . . Locate Traps 1 | . . . . . . . . . . . . . . . . 1 . . . . . . . Hauler Manifests 1 | . . . . . . 1 . . . . . . . . . . . . . . . . . Fabricator Hacks 3 | . . . . . . . . . . . . . . . . 1 . . . . 2 . . Load Schematic 1 | . . . . . . . . . . . . . . . . . . . . . 1 . . Build 2 | . . . . . . . . . . . . . . . . 1 . . . . 1 . . Repair Station Hacks 8 | . . . . . . . . . . . 6 . . . . . . . . . . . 2 Scan Component 4 | . . . . . . . . . . . 3 . . . . . . . . . . . 1 Repair 4 | . . . . . . . . . . . 3 . . . . . . . . . . . 1 Recycling Unit Hacks 2 | . . . . . . . . . . . . . . . . . . . . . . . 2 Report Inventory 1 | . . . . . . . . . . . . . . . . . . . . . . . 1 Retrieve Components 1 | . . . . . . . . . . . . . . . . . . . . . . . 1 Scanalyzer 4 | . . . . . 1 2 . . . . . . . . . 1 . . . . . . . Insert Component 3 | . . . . . 1 1 . . . . . . . . . 1 . . . . . . . Analyze 1 | . . . . . . 1 . . . . . . . . . . . . . . . . . Garrison Access Hacks 3 | . . . . . . 1 . . . . 1 . . . . 1 . . . . . . . Seal Access 3 | . . . . . . 1 . . . . 1 . . . . 1 . . . . . . . Unauthorized Hacks 11 | . 4 . . . . 3 . . . . 4 . . . . . . . . . . . . Terminals 10 | . 4 . . . . 3 . . . . 3 . . . . . . . . . . . . Track 3 | . . . . . . 2 . . . . 1 . . . . . . . . . . . . Botnet 7 | . 4 . . . . 1 . . . . 2 . . . . . . . . . . . . Fabricators 1 | . . . . . . . . . . . 1 . . . . . . . . . . . . Report 1 | . . . . . . . . . . . 1 . . . . . . . . . . . . Repair Stations . | . . . . . . . . . . . . . . . . . . . . . . . . Recycling Units . | . . . . . . . . . . . . . . . . . . . . . . . . Scanalyzers . | . . . . . . . . . . . . . . . . . . . . . . . . Garrison Access . | . . . . . . . . . . . . . . . . . . . . . . . . Data Cores Recovered . | . . . . . . . . . . . . . . . . . . . . . . . . Used . | . . . . . . . . . . . . . . . . . . . . . . . . Hacking Detections 35 | . 4 . . . 1 6 . . . . 8 . . . . 5 . . . . 3 . 8 Full Trace Events 4 | . . . . . 1 . . . . . 1 . . . . . . . . . 2 . . Feedback Events 1 | . . . . . . . . . . . . . . . . . . . . . 1 . . Corruption 1 | . . . . . . . . . . . . . . . . . . . . . 1 . . Feedback Blocked . | . . . . . . . . . . . . . . . . . . . . . . . . Robot Schematics Acquired 5 | . . . . . . . . . . . . . . 5 . . . . . . . . . Robots Built . | . . . . . . . . . . . . . . . . . . . . . . . . Authchips . | . . . . . . . . . . . . . . . . . . . . . . . . Time . | . . . . . . . . . . . . . . . . . . . . . . . . Total Robot Build Rating . | . . . . . . . . . . . . . . . . . . . . . . . . Part Schematics Acquired 17 | . . . . . . 1 . . . . . . . 12 . . . . 4 . . . . Parts Built 4 | . . . . . . . . . . . . . . . . 2 . . . . 2 . . Authchips . | . . . . . . . . . . . . . . . . . . . . . . . . Time 122 | . . . . . . . . . . . . . . . . 64 . . . . 58 . . Total Part Build Rating 30 | . . . . . . . . . . . . . . . . 16 . . . . 14 . . Parts Repaired 4 | . . . . . . . . . . . 3 . . . . . . . . . . . 1 Time 169 | . . . . . . . . . . . 66 . . . . . . . . . . . 103 Parts Recycled . | . . . . . . . . . . . . . . . . . . . . . . . . Recycled Matter . | . . . . . . . . . . . . . . . . . . . . . . . . Retrieved Matter . | . . . . . . . . . . . . . . . . . . . . . . . . Retrieved Components 10 | . . . . . . . . . . . . . . . . . . . . . . . 10 Parts Scanalyzed 2 | . . . . . . 1 . . . . . . . . . 1 . . . . . . . Part Schematics Acquired 1 | . . . . . . 1 . . . . . . . . . . . . . . . . . Parts Damaged . | . . . . . . . . . . . . . . . . . . . . . . . . Bothacking | -11 -10 -10 -10 -9 -8 -7 -7 -7 -7 -6 -6 -6 -6 -6 -5 -5 -5 -5 -5 -4 -4 -4 -4 ------------ Run | Scr Mat Min Exi Min Mat Fac Low Low Zio Pro Fac Low Low Dat Pro Fac Upp Upp Zhi Pro Fac Was Fac Used RIF Installer . | . . . . . . . . . . . . . . . . . . . . . . . . Robots Hacked . | . . . . . . . . . . . . . . . . . . . . . . . . Non-combat . | . . . . . . . . . . . . . . . . . . . . . . . . Combat . | . . . . . . . . . . . . . . . . . . . . . . . . Robot Hacks Applied . | . . . . . . . . . . . . . . . . . . . . . . . . Relay Couplers Released 3 | . . . . . . . . . . . 3 . . . . . . . . . . . . Programmers 3 | . . . . . . . . . . . 3 . . . . . . . . . . . . Fabnet Peak Effective % . | . . . . . . . . . . . . . . . . . . . . . . . . Robots Rewired 8 | . . . . . . . 2 . . . . . . . 2 . 2 . . 2 . . . Allies Hacked . | . . . . . . . . . . . . . . . . . . . . . . . . Hacks Repelled . | . . . . . . . . . . . . . . . . . . . . . . . . Allies | -11 -10 -10 -10 -9 -8 -7 -7 -7 -7 -6 -6 -6 -6 -6 -5 -5 -5 -5 -5 -4 -4 -4 -4 -------- Run | Scr Mat Min Exi Min Mat Fac Low Low Zio Pro Fac Low Low Dat Pro Fac Upp Upp Zhi Pro Fac Was Fac Total Allies 37 | . . 3 . . . . 2 . 5 . . . . . 3 2 2 . . 2 . 18 . Largest Group 18 | . . 3 3 3 2 . 2 . 5 5 . . . . 2 2 2 . . 2 2 18 11 Highest-Rated Group 656 | . . 40 40 40 24 . 36 . 125 125 . . . . 96 192 60 . . 92 92 656 468 Highest-Rated Ally 96 | . . 16 16 16 16 . 20 . 31 31 . . . . 96 96 30 . . 46 46 50 50 Total Orders 12 | . . . . . . . . . . 3 . . . . . . 5 3 . 1 . . . EXPLORE 10 | . . . . . . . . . . 3 . . . . . . 3 3 . 1 . . . RETURN 2 | . . . . . . . . . . . . . . . . . 2 . . . . . . Ally Attacks 323 | . . . . 15 8 . 11 . . 52 . . . . 20 21 15 10 . 11 15 65 80 Total Damage 8966 | . . . . 151 69 . 124 . . 857 . . . . 715 547 163 53 . 235 360 2371 3321 Kills 50 | . . . . 1 2 . . . . 2 . . . . 7 2 . . . 1 2 10 23 Allies Corrupted 3 | . . . . . . . . . . . . . . . 1 . 2 . . . . . . Allies Melted 1 | . . . . . . . . . . 1 . . . . . . . . . . . . . Intel | -11 -10 -10 -10 -9 -8 -7 -7 -7 -7 -6 -6 -6 -6 -6 -5 -5 -5 -5 -5 -4 -4 -4 -4 ------- Run | Scr Mat Min Exi Min Mat Fac Low Low Zio Pro Fac Low Low Dat Pro Fac Upp Upp Zhi Pro Fac Was Fac Robot Analysis Total 4 | . . . . . . . . . . . . . . . . . . . 4 . . . . Derelict Logs Recovered 14 | . . 2 . 1 . . 1 1 2 2 . 2 1 . 1 . . . . 1 . . . Drone Launches 11 | . . . . . . . . . . 3 . . . . . . 3 3 . 2 . . . Drone Recoveries 8 | . . . . . . . . . . 3 . . . . . . 2 2 . 1 . . . Exploration | -11 -10 -10 -10 -9 -8 -7 -7 -7 -7 -6 -6 -6 -6 -6 -5 -5 -5 -5 -5 -4 -4 -4 -4 ------------- Run | Scr Mat Min Exi Min Mat Fac Low Low Zio Pro Fac Low Low Dat Pro Fac Upp Upp Zhi Pro Fac Was Fac Turns Passed 23714 | 3 1011 1074 400 202 1105 1774 650 873 2037 745 3048 669 359 160 740 1908 980 363 330 1102 1555 630 1996 Spaces Moved 12278 | 3 513 621 250 107 459 798 321 515 1219 403 1530 368 181 97 383 990 497 188 198 482 762 419 974 Core 276 | . . . . . . . . . . . . . . . . . . . . . . 158 118 Treads 11025 | . 478 621 250 107 459 798 321 515 1219 403 1530 368 181 97 383 837 497 188 198 270 522 12 771 Legs 823 | 3 35 . . . . . . . . . . . . . . . . . . 212 239 249 85 Wheels 154 | . . . . . . . . . . . . . . . . 153 . . . . 1 . . Hover . | . . . . . . . . . . . . . . . . . . . . . . . . Flight . | . . . . . . . . . . . . . . . . . . . . . . . . Fastest Speed 50 | 120 120 160 160 160 160 162 162 162 162 162 165 165 162 162 160 105 150 156 156 120 120 50 50 Average Speed 160 | 120 157 160 160 160 160 191 162 162 162 164 165 165 164 162 161 149 152 156 156 199 147 128 144 Slowest Speed 500 | 120 240 160 160 160 240 245 162 162 162 165 167 165 165 162 163 240 156 156 156 400 240 500 245 Overloaded Moves . | . . . . . . . . . . . . . . . . . . . . . . . . Propulsion Burnouts . | . . . . . . . . . . . . . . . . . . . . . . . . Robots Hopped 2 | . . . . . . . . 1 1 . . . . . . . . . . . . . . Cave-ins Triggered . | . . . . . . . . . . . . . . . . . . . . . . . . Teleports 1 | . . . . . . . . . . . . . . . . . . . . . . 1 . Exploration Rate (%) 54 | 2 74 99 61 38 38 21 55 71 86 79 38 65 40 72 55 20 75 49 61 68 16 93 24 Regions Visited 23 Branch Regions 15 Pre-discovered Areas 11 | . . 3 . . . . . . 4 . . . . 1 . . . . 3 . . . . Known Exits Taken 10 | . . . . . . 1 . . . . 1 1 1 . 1 1 1 1 1 1 . . . Unknown Exits Taken 11 | 1 1 1 1 1 1 . 1 1 1 1 . . . 1 . . . . . . . . . Scrap Searched 23 | . . 1 . . . . 3 3 4 1 . 2 . . 2 . 5 1 . 1 . . . Spaces Dug 22 | . . . . . . 12 . . . . 3 . . . . . . . . . 1 . 6 Terrain Destroyed 549 | . . . . . . 21 6 . . 2 71 4 4 . 83 43 . 1 . 100 73 117 24 Melee . | . . . . . . . . . . . . . . . . . . . . . . . . Projectile 86 | . . . . . . . 6 . . 2 15 4 4 . 2 14 . 1 . 5 12 2 19 AOE 463 | . . . . . . 21 . . . . 56 . . . 81 29 . . . 95 61 115 5 Terrain Rammed . | . . . . . . . . . . . . . . . . . . . . . . . . Walls Destroyed . | . . . . . . . . . . . . . . . . . . . . . . . . Machines Disabled . | . . . . . . . . . . . . . . . . . . . . . . . . Actions | -11 -10 -10 -10 -9 -8 -7 -7 -7 -7 -6 -6 -6 -6 -6 -5 -5 -5 -5 -5 -4 -4 -4 -4 --------- Run | Scr Mat Min Exi Min Mat Fac Low Low Zio Pro Fac Low Low Dat Pro Fac Upp Upp Zhi Pro Fac Was Fac Total 14902 | 2 623 686 251 122 700 962 396 540 1284 461 1881 407 208 100 466 1276 678 247 221 566 988 476 1361 Wait 1038 | . 10 39 . 4 143 37 23 6 45 32 179 11 5 . 22 127 98 40 . 10 33 15 159 Move 12252 | 2 512 620 249 106 458 797 320 512 1216 402 1529 367 180 96 382 989 496 187 197 481 762 418 974 Hop 2 | . . . . . . . . 1 1 . . . . . . . . . . . . . . Pick Up 186 | . 18 5 1 . 9 17 5 6 7 2 21 5 2 . 3 9 16 2 4 6 19 5 24 Fast Attach 145 | . 6 2 . 1 4 12 . . 2 2 16 . . 2 5 24 7 3 8 5 17 8 21 Attach 67 | . 1 . . . 7 3 2 2 . . 8 . 2 . . 8 . 1 1 9 4 3 16 Detach 12 | . . . . . . 2 . . . . . . . . . 2 . . . 1 1 . 6 Swap 142 | . 9 1 . 1 8 12 4 . 3 3 20 7 1 . 5 13 13 4 . 14 11 4 9 Drop 254 | . 16 8 1 2 6 31 4 4 10 5 27 5 1 2 9 28 18 5 11 5 35 4 17 Fire 737 | . 51 9 . 8 65 45 28 8 . 15 80 12 17 . 23 74 18 5 . 27 106 19 127 Melee . | . . . . . . . . . . . . . . . . . . . . . . . . Ram 1 | . . . . . . . . . . . . . . . . . . . . . . . 1 Kick . | . . . . . . . . . . . . . . . . . . . . . . . . Crush 14 | . . 2 . . . 2 . . . . 1 . . . . 2 . . . . . . 7 Escape Stasis 4 | . . . . . . 4 . . . . . . . . . . . . . . . . . Rewire 48 | . . . . . . . 10 1 . . . . . . 17 . 12 . . 8 . . . Trap . | . . . . . . . . . . . . . . . . . . . . . . . . Miscellaneous . | . . . . . . . . . . . . . . . . . . . . . . . . Route ------- -11/Scrapyard -10/Materials (discovered 3 exits: [*Mat x2] / *Min) -10/Mines (discovered 3 exits: [*Mat x2] / [*Exi]) -10/Exiles (discovered 2 exits: [*Min x2]) -9/Mines -8/Materials -7/Factory (discovered 2 exits: *Low x2) -7/Lower Caves -7/Lower Caves -7/Zion -6/Proximity Caves -6/Factory (discovered 5 exits: Fac x2 / *Low x2 / Ext) -6/Lower Caves -6/Lower Caves -6/Data Miner -5/Proximity Caves -5/Factory (discovered 4 exits: *Fac x3 / *Upp) -5/Upper Caves -5/Upper Caves -5/Zhirov -4/Proximity Caves -4/Factory -4/Waste -4/Factory History --------- Turn | Location | Event 1 | -11/Scrapyard | Discovered new exit (range 3) 4 | -11/Scrapyard | Entered Materials 300 | -10/Materials | Discovered new exit (range 5) 308 | -10/Materials | Build established: Mutant 486 | -10/Materials | Discovered new exit (range 16) 676 | -10/Materials | Discovered new exit (range 12) 1015 | -10/Materials | Entered Mines 1031 | -10/Mines | Learned location of Storage (-9) 1067 | -10/Mines | Discovered new exit (range 12) 1102 | -10/Mines | Met a Derelict bent on vengeance 1192 | -10/Mines | Found the Drone Emporium 1201 | -10/Mines | Found Prototype Device 1201 | -10/Mines | Identified Thief Drone Bay 1254 | -10/Mines | Joined a pair of Derelicts in attacking an 0b10 outpost 1578 | -10/Mines | Deemed a non-threat by the Exiles lab entrance 1579 | -10/Mines | Discovered new exit (range 5) 1681 | -10/Mines | Learned location of Zion (-7) 1950 | -10/Mines | Discovered new exit (range 13) 1952 | -10/Mines | Assisted by bots powering up and referring to "LRC-V3" 2089 | -10/Mines | Entered Exiles 2089 | -10/Exiles | Accompanied by 3 allies 2110 | -10/Exiles | Discovered new exit (range 15) 2150 | -10/Exiles | Met 8R-AWN 2176 | -10/Exiles | Met EX-HEX 2222 | -10/Exiles | Met EX-BIN 2342 | -10/Exiles | Met EX-DEC 2475 | -10/Exiles | Discovered new exit (range 10) 2489 | -10/Exiles | Entered Mines 2489 | -9/Mines | Accompanied by 3 allies 2615 | -9/Mines | Learned Materials security intel 2676 | -9/Mines | Discovered new exit (range 9) 2691 | -9/Mines | Entered Materials 2691 | -8/Materials | Accompanied by 2 allies 2691 | -8/Materials | Evolved 4 slots: Propulsion x1, Utility x3 2902 | -8/Materials | Build established: Scavenger-Mutant 3465 | -8/Materials | Lost 4 parts (1p2n1u) 3680 | -8/Materials | Discovered new exit (range 3) 3742 | -8/Materials | Build established: Mutant 3796 | -8/Materials | Entered Factory 3796 | -7/Factory | Evolved 2 slots: Propulsion x1, Utility x1 4223 | -7/Factory | Garrison activated, responded to threat 4570 | -7/Factory | Build established: Scavenger-Mutant 4639 | -7/Factory | Discovered new exit (range 20) 5404 | -7/Factory | Identified exit to Lower Caves 5570 | -7/Factory | Entered Lower Caves 5801 | -7/Lower Caves | Attracted the attention of an 0b10 outpost 5882 | -7/Lower Caves | Destroyed 7 combat bots 6204 | -7/Lower Caves | Discovered new exit (range 12) 6220 | -7/Lower Caves | Entered another Lower Caves area 6731 | -7/Lower Caves | Learned 12 Factory zone layouts 6750 | -7/Lower Caves | Discovered new exit (range 5) 7093 | -7/Lower Caves | Entered Zion 7129 | -7/Zion | Given A8's code to call for help 7223 | -7/Zion | Discovered new exit (range 9) 7408 | -7/Zion | Learned location of Warlord (-4) 7502 | -7/Zion | Learned location of Extension (-6) 7618 | -7/Zion | Learned location of Quarantine (-3) 7631 | -7/Zion | Given the Hacking Drone Bay 7704 | -7/Zion | Build established: Mutant 7775 | -7/Zion | Learned Factory emergency access door positions 7838 | -7/Zion | Gained Derelict followers 8227 | -7/Zion | Learned 12 Factory zone layouts 8534 | -7/Zion | Visited the Megawrench Repair Shop 8534 | -7/Zion | Megawrench repaired 11 parts 8724 | -7/Zion | Found Prototype Special Weapon 9130 | -7/Zion | Entered Proximity Caves 9130 | -6/Proximity Caves | Accompanied by 5 allies 9173 | -6/Proximity Caves | Spotted B-75 Beast 9214 | -6/Proximity Caves | Allies destroyed B-75 Beast 9360 | -6/Proximity Caves | Learned Factory stockpile data 9843 | -6/Proximity Caves | Discovered new exit (range 10) 9875 | -6/Proximity Caves | Entered Factory 9875 | -6/Factory | Evolved 2 slots: Power x1, Utility x1 9876 | -6/Factory | Identified exit to Factory 9876 | -6/Factory | Identified exit to Lower Caves 9876 | -6/Factory | Identified exit to Extension 10366 | -6/Factory | Build established: Scavenger-Mutant 10981 | -6/Factory | Build established: Hacker-Mutant 11148 | -6/Factory | Lost 4 parts (3u1w) 11191 | -6/Factory | Garrison activated, responded to threat 11304 | -6/Factory | Discovered exit to Lower Caves (range 17) 11441 | -6/Factory | Build established: Mutant 11815 | -6/Factory | Repaired Hyb. Deuterium Engine 11836 | -6/Factory | Repaired Arm. Treads 11836 | -6/Factory | Build established: Hacker-Mutant 12037 | -6/Factory | Repaired Imp. Medium Treads 12675 | -6/Factory | First assault squad dispatched 12923 | -6/Factory | Entered Lower Caves 12989 | -6/Lower Caves | Build established: Mutant 13115 | -6/Lower Caves | Learned location of 1 exit from Factory 13319 | -6/Lower Caves | Attracted the attention of an 0b10 checkpoint 13396 | -6/Lower Caves | Identified exit to Lower Caves 13592 | -6/Lower Caves | Entered another Lower Caves area 13609 | -6/Lower Caves | Identified exit to Data Miner 13951 | -6/Lower Caves | Entered Data Miner 13952 | -6/Data Miner | Discovered new exit (range 6) 13983 | -6/Data Miner | Met Data Miner 14025 | -6/Data Miner | Learned location of Section 7 (-3) 14025 | -6/Data Miner | Acquired the access code to Warlord's prototype stash 14051 | -6/Data Miner | Received God Mode back door access code from Data Miner 14111 | -6/Data Miner | Entered Proximity Caves 14248 | -5/Proximity Caves | Escorted by Enhanced Grunt 14341 | -5/Proximity Caves | Learned location of 1 exit from Factory 14424 | -5/Proximity Caves | Attracted the attention of an 0b10 outpost 14831 | -5/Proximity Caves | Discovered exit to Factory (range 11) 14851 | -5/Proximity Caves | Entered Factory 14851 | -5/Factory | Evolved 2 slots: Propulsion x1, Utility x1 14852 | -5/Factory | Identified exit to Upper Caves 14853 | -5/Factory | Identified exit to Factory 15143 | -5/Factory | Identified RU-N14's Throwing Claymores 15169 | -5/Factory | Destroyed 7 combat bots 15178 | -5/Factory | Lost 3 parts (1p2n) 15976 | -5/Factory | Build established: Scavenger-Mutant 15996 | -5/Factory | Discovered exit to Factory (range 9) 16081 | -5/Factory | Fabricated Biometal Medium Treads (x2) 16351 | -5/Factory | First assault squad dispatched 16473 | -5/Factory | Build established: Mutant 16485 | -5/Factory | Enhanced Grunt warped into view, answering call for help 16485 | -5/Factory | Enhanced Grunt warped into view, answering call for help 16495 | -5/Factory | Garrison activated, responded to threat 16759 | -5/Factory | Entered Upper Caves 16866 | -5/Upper Caves | Attracted the attention of an 0b10 outpost 17340 | -5/Upper Caves | Learned Factory terminal intel 17466 | -5/Upper Caves | Build established: Derelict-Mutant 17629 | -5/Upper Caves | Attracted the attention of an 0b10 checkpoint 17691 | -5/Upper Caves | System corruption reached 10% 17728 | -5/Upper Caves | Discovered new exit (range 9) 17738 | -5/Upper Caves | Identified exit to Upper Caves 17739 | -5/Upper Caves | Entered another Upper Caves area 18089 | -5/Upper Caves | Discovered new exit (range 9) 18100 | -5/Upper Caves | Identified exit to Zhirov 18102 | -5/Upper Caves | Entered Zhirov 18102 | -5/Zhirov | Discovered new exit (range 3) 18133 | -5/Zhirov | Met Zhirov 18166 | -5/Zhirov | Learned location of Testing (-2) 18166 | -5/Zhirov | Learned location of Command (-1) 18188 | -5/Zhirov | Zhirov requested help retrieving the SGEMP Prototype 18229 | -5/Zhirov | Found Alien Artifact 18229 | -5/Zhirov | Identified Integrated Dissipator 18229 | -5/Zhirov | Installed Integrated Dissipator, increased core heat dissipation (+20) 18254 | -5/Zhirov | Found Alien Artifact 18429 | -5/Zhirov | Identified exit to Proximity Caves 18432 | -5/Zhirov | Entered Proximity Caves 18467 | -4/Proximity Caves | Lost 4 parts (3n1u) 18527 | -4/Proximity Caves | Attracted the attention of an 0b10 checkpoint 18719 | -4/Proximity Caves | Build established: Mutant 19136 | -4/Proximity Caves | Attacked by a faux Warlord 19187 | -4/Proximity Caves | Lost 5 parts (2p1n2w) 19453 | -4/Proximity Caves | Learned Research terminal intel 19522 | -4/Proximity Caves | Discovered exit to Factory (range 7) 19534 | -4/Proximity Caves | Entered Factory 19534 | -4/Factory | Accompanied by 2 allies 19534 | -4/Factory | Evolved 2 slots: Utility x2 19535 | -4/Factory | Loaded intel: 26 terminal locations 19582 | -4/Factory | Build established: Scavenger-Mutant 19725 | -4/Factory | Spotted B-86 Titan 19872 | -4/Factory | Fabricated Imp. Heavy Treads (x2) 20202 | -4/Factory | Build established: Mutant 21034 | -4/Factory | First assault squad dispatched 21081 | -4/Factory | Incoming investigation squad redirected 21089 | -4/Factory | Sucked down chute 21089 | -4/Factory | Entered Waste 21109 | -4/Waste | Spotted C-40 Crusher 21126 | -4/Waste | Spotted C-40 Crusher 21128 | -4/Waste | Spotted C-40 Crusher 21134 | -4/Waste | Destroyed C-40 Crusher 21138 | -4/Waste | Destroyed C-40 Crusher 21152 | -4/Waste | Crushed by Compactor (1 part destroyed) 21155 | -4/Waste | Crushed by Compactor (1 part destroyed) 21158 | -4/Waste | Crushed by Compactor (1 part destroyed) 21161 | -4/Waste | Crushed by Compactor (0 parts destroyed, 1 dropped) 21164 | -4/Waste | Crushed by Compactor (1 part destroyed) 21167 | -4/Waste | Crushed by Compactor (1 part destroyed, 2 dropped) 21173 | -4/Waste | Identified Transdimensional Reconstructor 21173 | -4/Waste | Warped through subspace 21173 | -4/Waste | Spotted C-40 Crusher 21177 | -4/Waste | Spotted C-40 Crusher 21201 | -4/Waste | Lost 15 parts (1p3n8u3w) 21219 | -4/Waste | Warlord forces began an assault 21331 | -4/Waste | Spotted C-40 Crusher 21337 | -4/Waste | Allies destroyed C-40 Crusher 21499 | -4/Waste | Discovered new exit (range 12) 21673 | -4/Waste | Build established: Scavenger-Mutant 21719 | -4/Waste | Entered Factory 21719 | -4/Factory | Accompanied by 11 allies 21732 | -4/Factory | Garrison activated, responded to threat 21764 | -4/Factory | Incoming assault squad redirected 21925 | -4/Factory | Repaired Broken Adv. Heavy Siege Treads 22374 | -4/Factory | Build established: Mutant 22467 | -4/Factory | Found Prototype Device 22467 | -4/Factory | Identified Active Sensor Suite 22652 | -4/Factory | Core integrity fell below 50% 22750 | -4/Factory | Build established: Scavenger-Skirmisher 23219 | -4/Factory | First assault squad dispatched 23241 | -4/Factory | Incoming assault squad redirected 23456 | -4/Factory | Build established: Scavenger-Mutant 23481 | -4/Factory | System corruption reached 10% 23539 | -4/Factory | Lost 4 parts (3u1w) 23587 | -4/Factory | Incoming assault squad redirected 23655 | -4/Factory | Released all parts (9) 23656 | -4/Factory | Core integrity fell below 20% 23685 | -4/Factory | Lost 5 parts (1p2n1u1w) 23715 | -4/Factory | Destroyed by G-67 Veteran with Field Laser Last Messages --------------- 23655_ Released Imp. Treads. 23655_ Released Lgt. Antimatter Reactor. 23655_ Released Hcp. Storage Unit. 23655_ Released Adv. Thermal Shield. 23655_ Released Adv. Hacking Suite. 23655_ Released Imp. System Guard. 23655_ Released Adv. Visual Processing Unit. 23655_ Released Transport Network Coupler. 23657_ K-01 Serf cleans the Terminal. 23660_ Pressure Siphon disabled. 23660_ K-01 Serf collects debris. 23667_ System corrupted: Matter fused (-6). 23667_ K-01 Serf collects debris. 23669_ ALERT: Rogue bot located, Programmers report to Factory Zone 6K. 23675_ Slammed into K-01 Serf. 23681_ K-01 Serf cleans the Fabricator. 23683_ FHNDYUN4OXWW4YBHYQ ZU&HO 23693_ W-44 Eye sends out distress signal. 23703_ System corrupted: Matter fused (-6). 23709_ P-70 Sage resets P-70 Sage, system corruption cleaned. Map ----- +----------------------------------------------------+ | ????????# # + #????????????? | | ????????# "" # # #????????????? | | ????????# """ # #######################???? | | ????????# S" # #?????# #???? | | ????????# """ # #??#### #???? | | ????????# """ # #??# #???? | | ????????# # #??### #???? | | ????????######## #????## ! #???? | | ????????# # #?????# #???? | | ????????# """ + #?????# #???? | | ????????# "Y" # #?????# #???? | | ????????# # #?????# #???? | | ????????# ?# #?????# #??## | | ????????# ?# ##############+##+####### # | | ????????# """??# A #??###### | | ????????# """??# #### | | ????????# ""???# ## # | | ????????# ?"???# u #?## | | ???????????????# #?## | | ???????????????# #?## | | ???????????????# #?## | | ???????????????########## ############# | | ????????????????????????# ## # | | ????????????????????????# ## ]# | | ????????????????????????# ## # | | ????????????????????????#@ ## = """"" # [| | | ????????????????????????# + """"" ##+### | | ????????????????????????+ ## """ ##%* | | ????????????????????????# ## ## | | ????????????????????????# ## ! """"" ## | | ????????????????????????# ## """"" ## | | ????????????????????????# ## "" ## "" | | ???????????????????????# # ## "" | | ???????????????????????# g###+######### "" | | ???????????????????????# g # "" | | ???????????????????????# g g # "" | | ???????????????????????+ % # "" | | ???????????????????????# ? # | | ???????????????????????# ?? # | | ???????????????????????# ##???## ##### | | ???????????????????????# #?????# | | ???????????????????????### ###?????# [! | | ?????????????????????????# ????????# |% | | ??????????????????????????? ????????# % | | ????????????????????????????? ????????# | | ???????????????????????????????????????# | | ?????????????????????????????????????######+### | | ?????????????????????????????????????"" """ ### | | ?????????????????????????????????????"" """ # = | | ?????????????????????????????????????"" """ # | +----------------------------------------------------+ Best States ------------- Heat Dissipation 106 Coolant Potential 80 Energy Generation 49 Energy Capacity 1010 Matter Stores 363 Matter Capacity 700 Sight Range 22 Robot Scan Range 20 Terrain Scan Density 10 Power Amplification 30 Additional Mass Support 12 Corruption Containment 12 Armor Coverage 825 Resistance: KI 30 Resistance: TH 30 Resistance: EX 50 Core Shielding 20 Power Shielding 33 Propulsion Shielding 66 Utility Shielding 90 Phase Shifting 10 Evasion (%) 55 Targeting Accuracy 14 Launcher Accuracy 20 Recoil Reduction 9 Energy Filtering 30 Particle Charging 20 Salvage Targeting 4 Offensive Hacking 28 Defensive Hacking 12 Item Schematics ----------------- Imp. Shield Generator | -7/Factory | Scanalyzed Combat Drone Bay | -6/Data Miner | Free Lgt. Regenerative Plating | -6/Data Miner | Free Cld. Gravmag System | -6/Data Miner | Free Imp. Energy Well | -6/Data Miner | Free Hvy. Proton Cannon | -6/Data Miner | Free Imp. Heavy Treads | -6/Data Miner | Free Graphene Brace | -6/Data Miner | Free Adv. Datajack | -6/Data Miner | Free Antigrav System | -6/Data Miner | Free Phase Gun | -6/Data Miner | Free Mic. Antimatter Reactor | -6/Data Miner | Free Adv. Recalibrator | -6/Data Miner | Free Assault Drone Bay | -5/Zhirov | Free Exp. Heat Sink | -5/Zhirov | Free Imp. Arc Thrower | -5/Zhirov | Free Exp. Optical Array | -5/Zhirov | Free Robot Schematics ------------------ B-48 Gladiator | -6/Data Miner | Free L-41 Fighter | -6/Data Miner | Free Y-64 Sentinel | -6/Data Miner | Free A-27 Freighter | -6/Data Miner | Free X-77 Beamer | -6/Data Miner | Free Fabricated ------------ Biometal Medium Treads | x2 | -5/Factory | Preloaded Imp. Heavy Treads | x2 | -4/Factory Alien Tech Used ----------------- Integrated Dissipator Transdimensional Reconstructor Achievements -------------- None Challenges ------------ None Game ------ Seed CloakingThrusterDesublimator Manual? 0 Play Time 04:11:23 Cumulative 235.3 hours Start 2022.05.08 @ 19:34:58 End 2022.05.09 @ 02:42:22 Sessions 3 Manual Loads 0 Difficulty Rogue Special Mode None Game No. 327 Rogue 324 Adventurer 0 Explorer 3 Win Type - Total 8 Types 8/0/0/0/0/0/0/0/0 Lore% 69 Gallery% 73 Achievement% 60 Wizard Run 0 Options --------- ASCII 1 Keyboard 0 Movement Vi Keybinds 0 Fullscreen 1 Font 18/SmallcapsGlow Map View 76x50 Tactical HUD 1 Map Filters NONE Filters NONE Steam 1 RUN: 37c21945-9428-4b94-8b4d-f7114874d850